[Event "Czech Open Rapid G1 2024"]
[Site "Pardubice"]
[Date "2024.07.18"]
[Round "9.35"]
[White "Dolensky, Milan"]
[Black "Dobrowolski, Kamil"]
[Result "0-1"]
[Annotator "RC"]
[ECO "B23"]
[WhiteElo "1983"]
[BlackElo "1801"]
[PlyCount "62"]
[EventDate "2024.07.16"]
[EventType "swiss"]
[EventCountry "CZE"]
[SourceTitle "playchess.com"]
[Source "ChessBase"]
[SourceQuality "1"]
[TimeControl "1200+10"]

1. e4 {[%emt 0:00:01]} c5 {[%emt 0:00:01]} 2. Nc3 {[%emt 0:00:01]} d6 {[%emt 0:00:02]} 3. f4 {[%emt 0:00:02]} g6 {[%emt 0:00:04]} 4. Nf3 {[%emt 0:00:02]} Bg7 {[%emt 0:00:02]} 5. Bb5+ {[%emt 0:00:04]} Bd7 {[%emt 0:00:05]} 6. a4 {[%emt 0:00:10]} a6 {[%emt 0:00:06]} 7. Bxd7+ {[%emt 0:00:09]} Qxd7 {[%emt 0:00:02]} 8. d3 {[%emt 0:00:07]} Nc6 {[%emt 0:00:03]} 9. O-O {[%emt 0:00:12]} e6 {[%emt 0:00:01]} 10. Qe1 {[%emt 0:00:45]} Nge7 {[%emt 0:00:05]} 11. b3 {[%emt 0:00:46]} O-O {[%emt 0:00:30]} 12. Bb2 {[%emt 0:00:13]} d5 {[%emt 0:00:03]} 13. e5 {[%emt 0:00:32]} Nf5 {[%emt 0:00:21]} 14. Qf2 {[%emt 0:00:48]} Nfd4 {[%emt 0:00:22]} 15. Nxd4 {[%emt 0:00:41]} Nxd4 {[%emt 0:00:04]} 16. Nd1 {[%emt 0:00:09]} f6 {[%emt 0:01:37]} 17. Bxd4 {[%emt 0:00:40]} cxd4 {[%emt 0:00:02]} 18. exf6 {[%emt 0:01:42]} Rxf6 {[%emt 0:00:51]} 19. Qe2 {[%emt 0:01:01]} Raf8 {[%emt 0:00:15]} 20. g3 {[%emt 0:00:43]} e5 {[%emt 0:00:04]} 21. Qf3 {[%emt 0:01:24]} exf4 {[%emt 0:00:18]} 22. g4 {[%emt 0:00:02]} g5 {[%emt 0:01:38]} 23. Re1 {[%emt 0:00:35]} Re6 {[%emt 0:00:29]} 24. Rxe6 {[%emt 0:00:09]} Qxe6 {[%emt 0:00:03]} 25. Nf2 {[%emt 0:00:11]} Rc8 {[%emt 0:00:58]} 26. Rc1 {[%emt 0:00:49]} Kh8 {[%emt 0:00:18]} 27. Kf1 {[%emt 0:01:47]} Qe3 {[%emt 0:01:22]} 28. Qxe3 {[%emt 0:00:22]} dxe3 {[%emt 0:00:02]} 29. Nh3 {[%emt 0:00:02]} Bb2 {[%emt 0:02:10]} 30. Rb1 {[%emt 0:00:13]} Rxc2 {[%emt 0:00:08]} 31. Nxg5 {[%emt 0:00:24]} e2+ {[%emt 0:04:05]} 0-1

[Event "Czech Open Rapid G1 2024"]
[Site "Pardubice"]
[Date "2024.07.18"]
[Round "9.36"]
[White "Park, Inchan"]
[Black "Laith, Kasib"]
[Result "0-1"]
[Annotator "NA RC"]
[ECO "A49"]
[WhiteElo "1856"]
[BlackElo "2075"]
[PlyCount "64"]
[EventDate "2024.07.16"]
[EventType "swiss"]
[EventCountry "CZE"]
[SourceTitle "playchess.com"]
[Source "ChessBase"]
[SourceQuality "1"]
[TimeControl "1200+10"]

1. d4 {[%emt 0:00:04]} Nf6 {[%emt 0:01:54]} 2. Nf3 {[%emt 0:01:06]} g6 {[%emt 0:00:16]} 3. g3 {[%emt 0:00:11]} Bg7 {[%emt 0:00:02]} 4. Bg2 {[%emt 0:00:05]} O-O {[%emt 0:00:04]} 5. O-O {[%emt 0:00:05]} d6 {[%emt 0:00:02]} 6. b3 {[%emt 0:00:03]} e5 {[%emt 0:00:02]} 7. dxe5 {[%emt 0:00:02]} Nfd7 {[%emt 0:00:02]} 8. Bb2 {[%emt 0:00:02]} Nxe5 {[%emt 0:00:58]} 9. Qc1 {[%emt 0:02:01]} Nbc6 {[%emt 0:00:46]} 10. c4 {[%emt 0:00:33]} Bf5 {[%emt 0:02:23]} 11. Nxe5 {[%emt 0:01:27]} dxe5 {[%emt 0:00:18]} 12. Nc3 {[%emt 0:01:01]} Qc8 {[%emt 0:01:21]} 13. Rd1 {[%emt 0:01:20]} Re8 {[%emt 0:00:25]} 14. e4 {[%emt 0:07:28]} Be6 {[%emt 0:01:55]} 15. Nd5 {[%emt 0:01:12]} Nd4 {[%emt 0:00:13]} 16. Qd2 {[%emt 0:00:09]} c6 {[%emt 0:01:50]} 17. Ne3 {[%emt 0:01:09]} Rd8 {[%emt 0:00:24]} 18. Kh1 {[%emt 0:01:45]} Bh3 {[%emt 0:01:37]} 19. Nc2 {[%emt 0:01:09]} Bxg2+ {[%emt 0:00:31]} 20. Kxg2 {[%emt 0:00:02]} Qg4 {[%emt 0:00:20]} 21. Bxd4 {[%emt 0:00:38]} Qxe4+ {[%emt 0:01:08]} 22. f3 {[%emt 0:00:03]} Qf5 {[%emt 0:00:02]} 23. Qf2 {[%emt 0:00:38]} exd4 {[%emt 0:00:36]} 24. g4 {[%emt 0:00:44]} Qf6 {[%emt 0:00:14]} 25. Rd3 {[%emt 0:00:10]} c5 {[%emt 0:00:25]} 26. Re1 {[%emt 0:00:32]} Re8 {[%emt 0:01:23]} 27. b4 {[%emt 0:00:26]} b6 {[%emt 0:00:03]} 28. f4 {[%emt 0:00:25]} Rxe1 {[%emt 0:00:30]} 29. Nxe1 {[%emt 0:00:01]} Qe6 {[%emt 0:00:03]} 30. bxc5 {[%emt 0:00:27]} bxc5 {[%emt 0:00:04]} 31. Qf3 {[%emt 0:00:09]} Re8 {[%emt 0:00:21]} 32. Rd1 {[%emt 0:00:11]} Qxc4 {[%emt 0:00:10]} 0-1